bitfinex-derivatives/quotes_SOLF0:USTF0_20250110
["timestamp","ask_amount","ask_price","bid_price","bid_amount"]
[1736501561237,6.02,192.61,192.52,6.63425755]
[1736501561438,6.63425755,192.59,192.52,6.63425755]
[1736501562038,6.63425755,192.59,192.53,1.499]
[1736501563037,6.63425755,192.59,192.58,2.5967]
[1736501563635,4.5,192.63,192.47,1.5977]
[1736501563844,6.63425755,192.55,192.49,6.63425755]
[1736501564342,6.63425755,192.55,192.52,2.5974]
[1736501564644,6.63425755,192.55,192.49,6.63425755]
[1736501566042,6.63425755,192.51,192.37,50.01233782]
[1736501566244,6.63425755,192.45,192.38,4.6506]
[1736501566446,6.63425755,192.45,192.39,6.63425755]
[1736501567045,6.63425755,192.45,192.38,4.6506]
[1736501567344,4.5,192.5,192.39,6.63425755]
[1736501567540,6.63425755,192.46,192.44,2.5985]
[1736501567738,6.63425755,192.46,192.41,6.63425755]
[1736501568648,6.63425755,192.46,192.45,2.5984]
[1736501568847,6.63425755,192.48,192.41,6.63425755]
[1736501569145,6.63425755,192.49,192.43,6.63425755]
[1736501569340,4.5,192.5,192.4,10.3715768]
[1736501569549,10.3715768,192.52,192.4,10.3715768]
[1736501569749,10.3715768,192.52,192.43,2.5986]
[1736501570044,10.3715768,192.52,192.4,10.3715768]
[1736501570442,10.3715768,192.52,192.5,2.5977]
[1736501570638,1.6071,192.54,192.5,2.5977]
[1736501571038,14.8715768,192.55,192.52,2.5974]
[1736501571242,14.8715768,192.55,192.43,10.3715768]
[1736501571849,10.3715768,192.52,192.4,10.3715768]
[1736501572645,10.3715768,192.49,192.38,199.6506]
[1736501572838,12.9694768,192.49,192.43,2.5986]
[1736501574854,12.9694768,192.49,192.44,2.5985]
[1736501575153,10.3715768,192.49,192.38,199.6506]
[1736501575450,1.6051,192.51,192.4,10.3715768]
[1736501578048,4.2027,192.51,192.46,2.5982]
[1736501578455,14.8715768,192.52,192.4,10.3715768]
[1736501578853,10.3715768,192.52,192.4,10.3715768]
[1736501579153,10.3715768,192.55,192.43,10.3715768]
[1736501579355,10.3715768,192.55,192.38,199.6506]
[1736501579356,10.3715768,192.55,192.46,10.3715768]
[1736501579548,146.6408702,192.59,192.46,10.3715768]
[1736501579549,10.3715768,192.58,192.47,1.5881]
[1736501579749,10.3715768,192.58,192.47,4.6781]
[1736501580550,12.9682768,192.58,192.53,2.5972]
[1736501580753,10.3715768,192.58,192.53,2.5972]
[1736501580954,10.3715768,192.58,192.47,4.6781]
[1736501582654,2.597,192.56,192.52,2.5975]
[1736501582853,10.3715768,192.58,192.47,4.6781]
[1736501583047,11.8653768,192.58,192.47,4.6781]
[1736501583751,2.5971,192.55,192.47,4.6781]
[1736501585358,2.5971,192.55,192.5,2.5976]
[1736501586259,2.5971,192.55,192.51,2.5976]
[1736501587856,10.3715768,192.55,192.47,3.1733]
[1736501588158,10.3715768,192.52,192.48,2.598]
[1736501588356,10.3715768,192.52,192.42,1.5532]
[1736501588560,2.5977,192.51,192.47,2.5981]
[1736501588966,14.8715768,192.52,192.42,1.5532]
[1736501589254,2.598,192.49,192.45,2.5983]
[1736501589860,12.9695768,192.49,192.45,2.5983]
[1736501590060,2.598,192.48,192.44,2.5985]
[1736501592158,10.3715768,192.49,192.41,3.1962]
[1736501592361,10.3715768,192.49,192.45,2.5984]
[1736501592658,10.3715768,192.49,192.41,3.1962]
[1736501593456,17.4691768,192.52,192.41,3.1962]
[1736501593762,14.8715768,192.52,192.41,3.1962]
[1736501593965,17.4690768,192.52,192.41,3.1962]
[1736501594661,14.8715768,192.52,192.41,3.1962]
[1736501594861,2.5979,192.5,192.41,3.1962]
[1736501595064,2.5979,192.5,192.45,2.5983]
[1736501595360,12.9694768,192.49,192.45,2.5983]
[1736501595863,10.3715768,192.49,192.38,1.6295]
[1736501596067,2.5984,192.46,192.38,1.6295]
[1736501596362,10.3715768,192.46,192.38,1.6295]
[1736501596759,2.5985,192.45,192.4,2.599]
[1736501597358,10.3715768,192.46,192.38,1.6295]
[1736501598166,10.3715768,192.46,192.43,2.5987]
[1736501599561,12.9698768,192.46,192.43,2.5987]
[1736501600658,12.9698768,192.46,192.42,2.5988]
[1736501600863,2.5985,192.45,192.38,1.6295]
[1736501601064,10.3715768,192.46,192.38,1.6295]
[1736501601262,10.3715768,192.46,192.41,2.5989]
[1736501601459,2.5985,192.45,192.41,2.5989]
[1736501602369,2.5985,192.45,192.38,1.6295]
[1736501602565,2.5985,192.45,192.42,2.5988]
[1736501603369,2.5985,192.45,192.38,1.6295]
[1736501603570,2.5987,192.44,192.4,2.599]
[1736501603960,10.3715768,192.46,192.4,2.599]
[1736501605081,2.5986,192.44,192.4,2.599]
[1736501605273,10.3715768,192.43,192.38,2.5993]
[1736501606070,2.599,192.41,192.38,2.5993]
[1736501606375,10.3715768,192.43,192.32,1.4947]
[1736501606569,10.3715768,192.43,192.36,2.5996]
[1736501606764,2.5992,192.39,192.36,2.5996]
[1736501607164,2.5995,192.38,192.34,2.5998]
[1736501607468,10.3715768,192.4,192.34,2.5998]
[1736501607872,10.3715768,192.4,192.32,1.4947]
[1736501608072,12.9706768,192.4,192.37,2.5994]
[1736501608468,2.5991,192.4,192.37,2.5994]
[1736501608668,10.3715768,192.43,192.39,2.5992]
[1736501609374,12.9703768,192.43,192.39,2.5992]
[1736501610176,10.3715768,192.43,192.39,2.5992]
[1736501610377,2.5988,192.42,192.39,2.5992]
[1736501610576,2.5988,192.42,192.38,2.5994]
[1736501610776,2.5988,192.42,192.32,1.4947]
[1736501611273,6.64483489,192.39,192.37,2.5994]
[1736501611477,6.64483489,192.39,192.33,6.64483489]
[1736501612985,6.64483489,192.41,192.4,2.5991]
[1736501613178,6.64483489,192.43,192.37,6.64483489]
[1736501614284,6.64483489,192.45,192.39,6.64483489]
[1736501614678,9.24333489,192.45,192.41,2.5989]
[1736501615077,6.64483489,192.43,192.32,5.9947]
[1736501615285,6.64483489,192.43,192.37,6.64483489]
[1736501615680,6.64483489,192.43,192.4,2.599]
[1736501617287,2.5986,192.44,192.4,2.599]
[1736501617581,2.5987,192.43,192.38,2.5992]
[1736501617782,2.5987,192.43,192.33,10.37939511]
[1736501618383,12.97789511,192.45,192.33,10.37939511]
[1736501618589,10.37939511,192.45,192.33,10.37939511]
[1736501619086,2.5986,192.44,192.33,10.37939511]
[1736501619483,12.97789511,192.45,192.41,2.5989]
[1736501620786,12.97789511,192.45,192.33,10.37939511]
[1736501621783,2.5986,192.44,192.33,10.37939511]
[1736501622390,12.97789511,192.45,192.33,10.37939511]
[1736501622988,10.37939511,192.45,192.33,10.37939511]
[1736501623192,14.87939511,192.48,192.36,10.37939511]
[1736501623391,14.87939511,192.48,192.37,1.5616]
[1736501624394,14.87939511,192.48,192.38,1.5727]
[1736501625094,14.87939511,192.48,192.44,2.5985]
[1736501625591,14.87939511,192.48,192.41,2.599]
[1736501625790,14.87939511,192.48,192.38,1.5727]
[1736501626192,14.87939511,192.48,192.45,2.5984]
[1736501626889,10.37939511,192.48,192.45,2.5984]
[1736501627194,4.5,192.5,192.48,2.598]
[1736501630794,4.5,192.5,192.47,2.5981]
[1736501631197,4.5,192.5,192.39,11.97499511]
[1736501632394,4.5,192.5,192.47,2.598]
[1736501632795,12.97699511,192.51,192.47,2.598]
[1736501633000,14.87939511,192.51,192.42,2.5987]
[1736501633201,10.37939511,192.54,192.42,10.37939511]
[1736501633601,4.5,192.54,192.45,10.37939511]
[1736501633797,4.5,192.54,192.47,2.5981]
[1736501633997,4.5,192.54,192.45,10.37939511]
[1736501634402,4.5,192.54,192.51,2.5975]
[1736501634998,4.5,192.54,192.5,2.5976]
[1736501635592,14.87939511,192.54,192.5,2.5976]
[1736501635998,17.47659511,192.54,192.5,2.5976]
[1736501636703,14.87939511,192.54,192.51,2.5975]
[1736501637403,6.63601038,192.52,192.51,2.5975]
[1736501638204,4.5,192.56,192.48,6.63601038]
[1736501638393,6.63601038,192.54,192.53,2.5972]
[1736501641803,3.1225,192.6,192.5,6.63601038]
[1736501642004,6.63601038,192.59,192.52,6.63601038]
[1736501642305,6.63601038,192.61,192.54,6.63601038]
[1736501642710,6.63601038,192.59,192.52,6.63601038]
[1736501643209,6.63601038,192.57,192.5,6.63601038]
[1736501643510,6.63601038,192.57,192.55,2.597]
[1736501643711,6.0233,192.63,192.52,6.63601038]
[1736501643911,6.63601038,192.6,192.54,6.63601038]
[1736501644407,6.63601038,192.6,192.58,2.5966]
[1736501645207,6.63601038,192.6,192.54,6.63601038]
[1736501645414,6.63601038,192.6,192.59,2.5965]
[1736501646211,6.63601038,192.62,192.54,6.63601038]
[1736501646407,6.63601038,192.62,192.6,2.5963]
[1736501647808,6.63601038,192.62,192.59,2.5965]
[1736501648006,6.63601038,192.6,192.59,2.5965]
[1736501649112,6.63601038,192.62,192.56,6.63601038]
[1736501649607,6.63601038,192.64,192.58,6.63601038]
[1736501651316,6.63601038,192.64,192.63,2.596]
[1736501651513,6.63601038,192.66,192.58,8.20001038]
[1736501651719,6.63601038,192.64,192.58,8.20001038]
[1736501651917,6.63601038,192.62,192.57,1.5479]
[1736501653115,6.63601038,192.62,192.6,2.5963]
[1736501654218,6.63601038,192.62,192.61,2.5963]
[1736501654912,6.63601038,192.62,192.57,8.18391038]
[1736501655115,6.63601038,192.62,192.6,2.5964]
[1736501655410,6.63601038,192.62,192.57,8.18391038]
[1736501656217,6.63601038,192.62,192.58,2.5966]
[1736501656516,6.63601038,192.62,192.57,8.18391038]
[1736501657014,6.63601038,192.62,192.61,2.5963]
[1736501663123,6.63601038,192.62,192.6,2.5964]
[1736501663922,6.63601038,192.62,192.57,8.18391038]
[1736501664123,6.63601038,192.62,192.61,2.5963]
[1736501665619,6.63601038,192.62,192.51,1.564]
[1736501665824,6.63601038,192.6,192.54,6.63601038]
[1736501666824,6.63601038,192.6,192.55,2.597]
[1736501667025,6.63601038,192.6,192.54,6.63601038]
[1736501668522,2.5961,192.62,192.59,2.5965]
[1736501668722,6.63601038,192.6,192.59,2.5965]
[1736501671324,6.63601038,192.62,192.61,2.5963]
[1736501671631,6.63601038,192.64,192.58,6.63601038]
[1736501671926,6.63601038,192.64,192.59,2.5964]
[1736501672125,6.63601038,192.64,192.58,6.63601038]
[1736501672324,2.5958,192.65,192.58,6.63601038]
[1736501672627,6.63601038,192.64,192.58,6.63601038]
[1736501673122,6.63601038,192.64,192.62,2.5961]
[1736501673526,1.55,192.71,192.62,6.63601038]
[1736501673527,145.1143702,192.71,192.62,6.63601038]
[1736501673729,6.63601038,192.7,192.68,2.5952]
[1736501673923,6.63601038,192.7,192.65,6.63601038]
[1736501674321,6.63601038,192.68,192.63,6.63601038]
[1736501674928,6.63601038,192.68,192.67,2.5954]
[1736501677430,7.86090565,192.74,192.65,6.63601038]
[1736501677732,6.63601038,192.73,192.67,6.63601038]
[1736501678133,6.63601038,192.73,192.69,2.5951]
[1736501678632,6.63601038,192.73,192.66,6.63601038]
[1736501679731,6.63601038,192.73,192.69,2.5951]
[1736501680034,6.63601038,192.71,192.69,2.5951]
[1736501682136,6.63601038,192.71,192.67,2.5954]
[1736501682437,6.63601038,192.71,192.66,6.63601038]
[1736501682839,7.86629934,192.78,192.7,6.63601038]
[1736501683130,150.20038058,192.79,192.73,6.63601038]
[1736501683335,150.20038058,192.79,192.76,2.5941]
[1736501683336,143.5643702,192.79,192.76,2.5941]
[1736501683538,6.63601038,192.8,192.73,6.63601038]
[1736501684138,9.22971038,192.8,192.76,2.5942]
[1736501686235,6.63601038,192.78,192.76,2.5942]
[1736501687439,0.18596,192.81,192.77,2.594]
[1736501687638,6.82197038,192.81,192.77,2.594]
[1736501688139,9.41557038,192.81,192.77,2.594]
[1736501689339,6.82197038,192.81,192.79,2.5938]
[1736501694844,0.18596,192.81,192.79,2.5938]
[1736501695436,0.18596,192.81,192.77,6.63601038]
[1736501695739,0.18596,192.81,192.8,2.5937]
[1736501696341,9.22931038,192.83,192.8,2.5937]
[1736501698146,6.63601038,192.81,192.68,1.5758]
[1736501698347,6.63601038,192.75,192.69,6.63601038]
[1736501699144,6.63601038,192.75,192.73,2.5946]
[1736501700047,6.63601038,192.75,192.74,2.5945]
[1736501701842,6.63601038,192.77,192.71,6.63601038]
[1736501702042,6.63601038,192.77,192.75,2.5943]
[1736501702447,2.5936,192.81,192.78,2.5939]
[1736501702747,6.63601038,192.8,192.75,6.63601038]
[1736501703747,6.63601038,192.8,192.68,1.5758]
[1736501703952,6.63601038,192.8,192.73,6.63601038]
[1736501704347,6.63601038,192.78,192.77,2.5941]
[1736501704944,9.23001038,192.78,192.68,1.5758]
[1736501705149,6.63601038,192.76,192.71,6.63601038]
[1736501705648,6.63601038,192.76,192.69,6.63601038]
[1736501706247,4.5,192.77,192.73,2.5946]
[1736501706451,6.63601038,192.76,192.73,2.5946]
[1736501708757,6.63601038,192.76,192.71,6.63601038]
[1736501708958,6.63601038,192.76,192.74,2.5945]
[1736501709358,6.63601038,192.76,192.73,2.5946]
[1736501709549,4.5,192.77,192.71,6.63601038]
[1736501709754,4.5,192.77,192.73,6.63601038]
[1736501710054,11.13601038,192.82,192.75,6.63601038]
[1736501711257,11.13601038,192.82,192.79,2.5937]
[1736501712454,13.72941038,192.82,192.79,2.5937]
[1736501713563,7.84053598,192.86,192.77,6.63601038]
[1736501713768,2.593,192.85,192.81,2.5935]
[1736501714266,6.63601038,192.82,192.78,2.5939]
[1736501714463,6.63601038,192.82,192.77,6.63601038]
[1736501715356,6.63601038,192.82,192.68,196.5758]
[1736501715560,6.63601038,192.8,192.74,6.63601038]
[1736501715966,2.5938,192.79,192.75,2.5943]
[1736501716169,6.63601038,192.8,192.72,6.63601038]
[1736501716358,6.63601038,192.8,192.77,2.594]
[1736501716760,6.63601038,192.8,192.74,6.63601038]
[1736501717158,6.63601038,192.82,192.79,2.5938]
[1736501717370,2.5933,192.84,192.76,6.63601038]
[1736501717560,6.63601038,192.82,192.76,6.63601038]
[1736501718066,6.63601038,192.83,192.8,2.5937]
[1736501724371,6.63601038,192.83,192.7,3.1238]
[1736501724576,6.63601038,192.81,192.7,3.1238]
[1736501724877,6.63601038,192.81,192.73,6.63601038]
[1736501725264,6.63601038,192.77,192.7,1.5296]
[1736501725470,6.63601038,192.75,192.69,6.63601038]
[1736501725671,6.63601038,192.75,192.68,1.5758]
[1736501725874,6.63601038,192.75,192.68,8.21181038]
[1736501726072,2.5945,192.74,192.71,2.5949]
[1736501726378,6.63601038,192.75,192.71,2.5949]
[1736501727077,9.23041038,192.75,192.71,2.5949]
[1736501728680,2.5948,192.72,192.65,6.63601038]
[1736501728872,6.63601038,192.71,192.65,6.63601038]
[1736501729073,6.63601038,192.71,192.64,1.5683]
[1736501729381,6.63601038,192.72,192.65,6.63601038]
[1736501730781,2.5949,192.71,192.67,2.5954]
[1736501732480,11.13601038,192.73,192.69,2.5951]
[1736501732681,11.13601038,192.73,192.67,6.63601038]
[1736501733078,11.13601038,192.73,192.7,2.5949]
[1736501733280,4.5,192.73,192.67,6.63601038]
[1736501733482,4.5,192.73,192.69,6.63601038]
[1736501733683,4.5,192.73,192.7,2.595]
[1736501733980,4.5,192.73,192.69,6.63601038]
[1736501734682,4.5,192.73,192.71,2.5948]
[1736501735081,4.5,192.73,192.72,2.5948]
[1736501736878,6.63601038,192.76,192.69,6.63601038]
[1736501737184,6.63601038,192.74,192.71,2.5949]
[1736501738285,6.63601038,192.74,192.72,2.5948]
[1736501739283,6.63601038,192.74,192.67,6.63601038]
[1736501739678,2.5944,192.75,192.64,3.061]
[1736501739679,6.63601038,192.7,192.65,2.5956]
[1736501739883,6.63601038,192.7,192.64,6.63601038]
[1736501740187,11.13601038,192.7,192.64,6.63601038]
[1736501740487,11.13601038,192.7,192.66,2.5955]
[1736501741285,11.13601038,192.7,192.64,6.63601038]
[1736501741489,11.13601038,192.7,192.67,2.5953]
[1736501742090,11.13601038,192.7,192.64,6.63601038]
[1736501742290,11.13601038,192.7,192.68,2.5953]
[1736501742992,11.13601038,192.7,192.65,2.5956]
[1736501743181,11.13601038,192.7,192.64,6.63601038]
[1736501744793,11.13601038,192.7,192.68,2.5953]
[1736501747295,11.13601038,192.7,192.63,4.17985273]
[1736501747492,11.13601038,192.7,192.64,2.5958]
[1736501747493,6.63601038,192.66,192.64,2.5958]
[1736501749906,6.63601038,192.66,192.65,2.5957]
[1736501751007,6.63601038,192.66,192.64,2.5958]
[1736501751703,6.63601038,192.66,192.65,2.5957]
[1736501753100,6.63601038,192.66,192.6,6.63601038]
[1736501753309,6.63601038,192.64,192.63,2.5959]
[1736501754499,6.63601038,192.64,192.56,1.6013]
[1736501754703,6.63601038,192.62,192.56,1.6013]
[1736501754905,6.63601038,192.62,192.55,6.63601038]
[1736501756298,6.63601038,192.62,192.59,2.5964]
[1736501757402,6.63601038,192.6,192.57,2.5967]
[1736501757607,6.63601038,192.58,192.57,2.5967]
[1736501757907,6.63601038,192.58,192.52,57.53642948]
[1736501757908,6.63601038,192.58,192.52,55.90032948]
[1736501758097,6.63601038,192.58,192.55,2.597]
[1736501758704,6.63601038,192.56,192.52,2.5974]
[1736501758905,6.63601038,192.54,192.52,2.5974]
[1736501760101,6.63601038,192.54,192.5,2.5976]
[1736501760307,6.63601038,192.52,192.5,2.5976]
[1736501760605,6.63601038,192.52,192.46,6.63601038]
[1736501761104,6.63601038,192.52,192.48,2.5979]
[1736501761302,1.5124,192.55,192.48,2.5979]
[1736501761510,6.63601038,192.5,192.48,2.5979]
[1736501761804,6.63601038,192.5,192.49,2.5979]
[1736501762004,6.63601038,192.5,192.41,3.2465]
[1736501762207,6.63601038,192.5,192.43,6.63601038]
[1736501762511,6.63601038,192.48,192.46,2.5982]
[1736501763505,6.63601038,192.48,192.41,3.2465]
[1736501763811,6.63601038,192.48,192.44,2.5985]
[1736501764311,6.63601038,192.46,192.44,2.5985]
[1736501764805,6.63601038,192.46,192.38,44.74815282]
[1736501765010,6.63601038,192.44,192.38,44.74815282]
[1736501765413,6.63601038,192.44,192.41,2.5989]
[1736501765606,6.63601038,192.44,192.39,6.63601038]
[1736501766211,6.63601038,192.44,192.41,2.5989]
[1736501766914,6.63601038,192.44,192.39,6.63601038]
[1736501767414,6.63601038,192.46,192.39,6.63601038]
[1736501767610,6.63601038,192.44,192.38,44.74815282]
[1736501768117,6.63601038,192.44,192.4,2.5991]
[1736501768314,4.5,192.49,192.38,44.74815282]
[1736501768315,6.63601038,192.42,192.38,44.74815282]
[1736501768511,6.63601038,192.4,192.32,1.5138]
[1736501768710,6.63601038,192.38,192.36,2.5996]
[1736501769215,6.63601038,192.38,192.32,8.14981038]
[1736501769515,6.63601038,192.38,192.35,2.5998]
[1736501769719,6.63601038,192.38,192.32,8.14981038]
[1736501770217,6.63601038,192.38,192.36,2.5996]
[1736501772016,7.099,192.41,192.36,2.5996]
[1736501772220,4.5,192.41,192.32,8.14981038]
[1736501772418,4.5,192.41,192.34,12.8364569]
[1736501772617,6.63601038,192.4,192.34,12.8364569]
[1736501773023,6.63601038,192.4,192.34,6.20044652]
[1736501773319,6.63601038,192.38,192.34,6.20044652]
[1736501773718,6.63601038,192.38,192.36,2.5995]
[1736501774119,6.63601038,192.38,192.23,5.2026]
[1736501774309,6.63601038,192.36,192.33,2.6]
[1736501774715,6.63601038,192.36,192.31,6.63601038]
[1736501775821,6.63601038,192.36,192.28,2.6007]
[1736501776027,6.63601038,192.36,192.29,6.63601038]
[1736501776425,6.63601038,192.36,192.33,2.6]
[1736501776920,6.63601038,192.36,192.29,6.63601038]
[1736501777120,6.63601038,192.36,192.25,4.645]
[1736501777321,6.63601038,192.32,192.25,4.645]
[1736501777514,6.63601038,192.32,192.31,2.6003]
[1736501777719,6.63601038,192.32,192.25,4.645]
[1736501777919,6.63601038,192.3,192.25,4.645]
[1736501778119,11.13601038,192.32,192.25,4.645]
[1736501778419,11.13601038,192.32,192.3,2.6004]
[1736501779019,11.13601038,192.32,192.25,4.645]
[1736501779321,6.63601038,192.29,192.28,2.6006]
[1736501779523,6.63601038,192.31,192.25,3.1195]
[1736501779721,6.63601038,192.31,192.28,2.6006]
[1736501781518,6.63601038,192.31,192.25,3.1195]
[1736501781722,6.63601038,192.31,192.29,2.6005]
[1736501782617,6.63601038,192.31,192.25,3.1195]
[1736501782823,11.13601038,192.32,192.31,2.6003]
[1736501783121,4.5,192.32,192.31,2.6003]
[1736501785725,6.63601038,192.37,192.3,6.63601038]
[1736501786023,6.63601038,192.37,192.26,1.4923]
[1736501786024,6.63601038,192.37,192.32,6.63601038]
[1736501786224,6.63601038,192.37,192.33,2.6]
[1736501786425,6.63601038,192.37,192.32,6.63601038]
[1736501786826,6.63601038,192.37,192.36,2.5996]
[1736501787026,6.63601038,192.4,192.32,6.63601038]
[1736501787225,6.63601038,192.4,192.33,3.1942]
[1736501787629,6.63601038,192.4,192.37,2.5994]
[1736501787921,6.63601038,192.38,192.37,2.5994]
[1736501788127,6.63601038,192.38,192.35,2.5997]
[1736501788721,6.63601038,192.36,192.33,2.5999]
[1736501789121,6.63601038,192.34,192.33,2.5999]
[1736501789315,6.63601038,192.34,192.31,2.6002]
[1736501789527,6.63601038,192.34,192.28,6.63601038]
[1736501791727,6.63601038,192.34,192.33,2.6]
[1736501794220,6.63601038,192.34,192.32,2.6001]
[1736501797136,6.63601038,192.34,192.31,2.6002]
[1736501797328,6.63601038,192.32,192.31,2.6002]
[1736501798631,9.23621038,192.32,192.24,6.63601038]
[1736501798836,6.63601038,192.3,192.24,6.63601038]
[1736501799125,6.63601038,192.3,192.28,2.6006]
[1736501799330,6.63601038,192.32,192.26,6.63601038]
[1736501799532,6.63601038,192.32,192.27,2.6007]
[1736501799732,6.63601038,192.32,192.26,6.63601038]
[1736501800133,6.63601038,192.32,192.24,6.63601038]
[1736501800332,6.63601038,192.3,192.24,6.63601038]
[1736501800532,6.63601038,192.3,192.25,2.601]
[1736501800729,6.63601038,192.3,192.23,6.63601038]
[1736501801734,6.63601038,192.3,192.29,2.6006]
[1736501801932,6.63601038,192.32,192.29,2.6006]
[1736501804239,6.63601038,192.3,192.29,2.6006]
[1736501804535,6.63601038,192.3,192.28,2.6007]
[1736501811342,6.63601038,192.3,192.23,6.63601038]
[1736501811543,9.23641038,192.3,192.27,2.6008]
[1736501813646,6.63601038,192.28,192.27,2.6008]
[1736501813941,2.601,192.27,192.22,3.73803674]
[1736501814148,6.63601038,192.26,192.22,3.73803674]
[1736501814549,6.63601038,192.26,192.23,2.6014]
[1736501814955,9.23701038,192.26,192.23,2.6014]
[1736501815449,6.63601038,192.24,192.23,2.6014]
[1736501821053,2.6009,192.27,192.24,2.6012]
[1736501821254,6.63601038,192.25,192.24,2.6012]
[1736501822153,6.63601038,192.25,192.23,2.6014]
[1736501822358,6.63601038,192.25,192.22,3.73803674]
[1736501823060,6.63601038,192.25,192.24,2.6013]
[1736501827064,6.63601038,192.25,192.22,3.73803674]
[1736501827253,6.63601038,192.23,192.19,4.6467]
[1736501827454,6.63601038,192.21,192.19,1.5177]
[1736501828163,6.63601038,192.21,192.2,2.6018]
[1736501829966,6.63601038,192.21,192.13,1.4997]
[1736501829967,2.6018,192.2,192.13,1.4997]
[1736501830262,6.63601038,192.18,192.13,1.4997]
[1736501830462,6.63601038,192.18,192.17,2.6022]
[1736501830853,4.52,192.25,192.16,6.63601038]
[1736501831062,6.63601038,192.23,192.16,6.63601038]
[1736501831266,6.63601038,192.21,192.16,6.63601038]
[1736501831757,6.63601038,192.21,192.19,2.6019]
[1736501832354,6.63601038,192.21,192.2,2.6018]
[1736501833259,2.6007,192.29,192.2,6.63601038]
[1736501833463,6.63601038,192.28,192.22,6.63601038]
[1736501833663,6.63601038,192.28,192.23,1.5092]
[1736501834367,6.63601038,192.28,192.25,2.601]
[1736501834558,6.63601038,192.28,192.23,1.5092]
[1736501834960,6.63601038,192.3,192.24,6.63601038]
[1736501835161,6.63601038,192.3,192.24,8.25481038]
[1736501835467,7.89222708,192.37,192.31,2.6003]
[1736501835655,6.63601038,192.34,192.28,6.63601038]
[1736501836263,6.63601038,192.32,192.25,1.6162]
[1736501836470,6.63601038,192.3,192.25,1.6162]
[1736501836765,6.63601038,192.3,192.26,2.6009]
[1736501836965,6.63601038,192.3,192.25,1.6162]
[1736501837360,6.63601038,192.28,192.25,1.6162]
[1736501837866,6.63601038,192.3,192.27,2.6007]
[1736501838069,6.63601038,192.3,192.25,1.6162]
[1736501839365,2.6002,192.32,192.27,2.6007]
[1736501839569,6.63601038,192.28,192.24,1.6188]
[1736501839768,6.63601038,192.28,192.23,1.5092]
[1736501840866,6.63601038,192.26,192.19,6.63601038]
[1736501841367,6.63601038,192.26,192.24,2.6012]
[1736501841771,6.63601038,192.26,192.17,1.4826]
[1736501841963,6.63601038,192.22,192.19,2.6018]
[1736501843066,6.63601038,192.2,192.17,2.6022]
[1736501843368,6.63601038,192.2,192.15,195.0]
[1736501843668,6.63601038,192.2,192.19,2.6019]
[1736501844272,6.63601038,192.22,192.16,6.63601038]
[1736501844971,6.63601038,192.22,192.21,2.6017]
[1736501847276,6.63601038,192.24,192.18,6.63601038]
[1736501847872,6.63601038,192.26,192.25,2.6011]
[1736501850372,6.63601038,192.3,192.24,6.63601038]
[1736501850871,6.63601038,192.3,192.27,2.6008]
[1736501851262,10.3960276,192.3,192.21,1.6134]
[1736501852373,2.6008,192.28,192.24,2.6011]
[1736501852672,10.3960276,192.3,192.21,1.6134]
[1736501853976,2.6009,192.27,192.23,2.6014]
[1736501854176,10.3960276,192.3,192.21,1.6134]
[1736501854376,10.3960276,192.27,192.21,1.6134]
[1736501854677,2.6011,192.26,192.22,2.6015]
[1736501855678,2.6011,192.25,192.21,2.6016]
[1736501855883,10.3960276,192.27,192.19,1.5713]
[1736501856170,2.601,192.26,192.22,2.6014]
[1736501856375,10.3960276,192.3,192.19,1.5713]
[1736501856877,10.3960276,192.27,192.19,1.5713]
[1736501858280,10.3960276,192.27,192.23,2.6013]
[1736501858780,10.3960276,192.3,192.19,1.5713]
[1736501858975,2.6006,192.29,192.19,1.5713]
[1736501859880,2.6006,192.29,192.24,2.6011]
[1736501860581,2.6006,192.29,192.19,1.5713]
[1736501860582,10.3960276,192.3,192.19,1.5713]
[1736501860777,10.3960276,192.33,192.21,10.3960276]
[1736501861278,2.6003,192.31,192.21,10.3960276]
[1736501862680,10.3960276,192.33,192.28,2.6007]
[1736501864178,2.6003,192.31,192.28,2.6007]
[1736501865378,2.6002,192.32,192.21,10.3960276]
[1736501865780,12.9961276,192.33,192.21,10.3960276]
[1736501866581,2.6002,192.32,192.28,2.6006]
[1736501867283,2.6002,192.32,192.29,2.6006]
[1736501867473,10.3960276,192.33,192.29,2.6006]
[1736501867674,12.9960276,192.33,192.29,2.6006]
[1736501869086,2.6002,192.32,192.28,2.6007]
[1736501870380,2.6003,192.31,192.28,2.6007]